bitfinex/quotes_BTCUSD_20220207
["timestamp","ask_amount","ask_price","bid_price","bid_amount"]
[1644276769801,0.00072247,43812.0,43805.0,0.057067]
[1644276770654,0.3,43819.0,43805.0,0.17119365]
[1644276770865,0.00072248,43811.0,43809.0,0.05706]
[1644276771059,0.00072248,43811.0,43806.0,0.11412]
[1644276771756,0.02029011,43815.0,43806.0,0.11412]
[1644276771961,0.02029011,43815.0,43810.0,0.1141182]
[1644276771962,0.00072248,43811.0,43810.0,0.1141182]
[1644276772160,2.48e-06,43811.0,43810.0,0.1141182]
[1644276772356,2.48e-06,43811.0,43810.0,0.2141182]
[1644276772855,2.48e-06,43811.0,43810.0,0.1641182]
[1644276773055,0.02029011,43815.0,43811.0,0.057051]
[1644276773453,0.0417779,43815.0,43811.0,0.057051]
[1644276773658,0.02148779,43815.0,43811.0,0.057051]
[1644276773902,0.31392427,43839.0,43811.0,0.107051]
[1644276773903,0.1213,43839.0,43811.0,0.107051]
[1644276774204,0.324432,43838.0,43831.0,0.057044]
[1644276775006,0.05,43839.0,43823.0,0.310654]
[1644276775007,0.05,43839.0,43826.0,0.11409518]
[1644276775301,0.1,43839.0,43826.0,0.11409518]
[1644276775502,0.1,43839.0,43829.0,0.057047]
[1644276775701,0.324432,43838.0,43829.0,0.057047]
[1644276775901,0.15,43838.0,43829.0,0.057047]
[1644276776204,0.324432,43837.0,43829.0,0.057047]
[1644276776402,0.424432,43837.0,43830.0,0.05704835]
[1644276776803,0.41695644,43837.0,43830.0,0.05704835]
[1644276777203,0.41695644,43837.0,43826.0,0.17114318]
[1644276777403,0.1,43837.0,43826.0,0.17114318]
[1644276777651,0.1,43837.0,43829.0,0.0570488]
[1644276777849,0.324427,43837.0,43829.0,0.0570488]
[1644276778051,0.324427,43837.0,43828.0,0.057047]
[1644276778249,0.424427,43837.0,43828.0,0.057047]
[1644276778858,0.05,43833.0,43826.0,0.11409518]
[1644276779050,0.05,43833.0,43823.0,0.31528241]
[1644276779251,0.05,43833.0,43822.0,0.02011225]
[1644276779650,0.05,43833.0,43822.0,0.02175744]
[1644276779851,0.107047,43833.0,43822.0,0.02175744]
[1644276780051,0.157047,43833.0,43822.0,0.02175744]
[1644276780550,0.057047,43831.0,43822.0,0.02175744]
[1644276780951,0.1,43833.0,43822.0,0.02192663]
[1644276780952,0.057051,43829.0,43822.0,0.02192663]
[1644276781598,0.057051,43829.0,43821.0,0.00072241]
[1644276782200,0.05705,43829.0,43821.0,0.00072241]
[1644276782600,0.05705,43829.0,43819.0,0.31243533]
[1644276782900,0.05705,43829.0,43821.0,0.00072241]
[1644276783799,0.05705,43829.0,43820.0,0.00016919]
[1644276784003,0.05705,43829.0,43821.0,0.00072241]
[1644276784202,0.1141,43829.0,43821.0,0.00072241]
[1644276784401,0.381482,43827.0,43821.0,0.0008916]
[1644276784601,0.05,43828.0,43821.0,0.00072241]
[1644276784802,0.324427,43828.0,43821.0,0.0008916]
[1644276785052,0.324427,43828.0,43821.0,0.00016919]
[1644276785248,0.324427,43828.0,43821.0,0.00072241]
[1644276785449,0.057052,43827.0,43821.0,0.00072241]
[1644276785948,0.324427,43826.0,43821.0,0.00072241]
[1644276786251,0.05,43826.0,43820.0,0.29491959]
[1644276786449,0.05,43826.0,43821.0,0.0007224]
[1644276786656,0.02132725,43830.0,43821.0,0.0007224]
[1644276786855,0.02132725,43830.0,43822.0,0.007461]
[1644276787052,0.02132725,43830.0,43823.0,0.05703359]
[1644276787250,0.02132725,43830.0,43826.0,0.064488]
[1644276787852,0.00285376,43830.0,43826.0,0.064488]
[1644276788150,0.00285376,43830.0,43826.0,0.121527]
[1644276788350,0.00285376,43830.0,43827.0,0.007453]
[1644276788999,0.02192637,43833.0,43827.0,0.007453]
[1644276789000,0.35978498,43842.0,43828.0,0.5]
[1644276789203,0.21716071,43842.0,43832.0,0.02192637]
[1644276789398,0.057038,43839.0,43832.0,0.02192637]
[1644276789598,0.31339397,43838.0,43832.0,0.02192637]
[1644276789799,0.324427,43837.0,43832.0,0.02192637]
[1644276790001,0.381474,43837.0,43823.0,0.00016919]
[1644276790201,0.1,43837.0,43822.0,0.31176646]
[1644276790399,0.02192637,43833.0,43824.0,0.114082]
[1644276790599,0.02192637,43833.0,43825.0,0.007452]
[1644276790801,0.02192637,43833.0,43826.0,0.05704]
[1644276791004,0.02192637,43833.0,43827.0,0.007452]
[1644276791205,0.02192637,43833.0,43828.0,0.0570379]
[1644276791603,0.02192637,43833.0,43829.0,0.007449]
[1644276792406,0.02192637,43833.0,43825.0,0.29912075]
[1644276792655,0.02192637,43833.0,43824.0,0.00016919]
[1644276792856,0.02192637,43833.0,43823.0,0.057045]
[1644276793255,0.02192637,43833.0,43824.0,0.29456271]
[1644276793455,0.02192637,43833.0,43825.0,0.29398121]
[1644276793653,0.02192637,43833.0,43823.0,0.00016919]
[1644276793853,0.02192637,43833.0,43822.0,0.05704]
[1644276794057,0.02192637,43833.0,43825.0,0.057042]
[1644276794360,0.00072306,43837.0,43827.0,0.007452]
[1644276794554,0.057038,43841.0,43826.0,0.30805785]
[1644276794954,0.00072309,43837.0,43826.0,0.30805785]
[1644276795153,0.00072309,43837.0,43827.0,0.05703429]
[1644276795356,0.00072309,43837.0,43828.0,0.064475]
[1644276795755,0.29235287,43845.0,43828.0,0.064475]
[1644276795956,0.29235287,43845.0,43826.0,0.06985294]
[1644276795957,0.05,43840.0,43826.0,0.06985294]
[1644276796155,0.00072309,43837.0,43826.0,0.01985294]
[1644276796701,0.057048,43836.0,43826.0,0.01985294]
[1644276796908,0.05,43832.0,43826.0,0.01985294]
[1644276797103,0.057048,43834.0,43826.0,0.01985294]
[1644276797308,0.324427,43833.0,43826.0,0.01985294]
[1644276797599,0.374427,43833.0,43826.0,0.01985294]
[1644276797798,0.05,43833.0,43824.0,0.21]
[1644276798199,0.05,43831.0,43824.0,0.21]
[1644276798801,0.324427,43834.0,43824.0,0.21]
[1644276799199,0.374427,43834.0,43824.0,0.21]
[1644276799399,0.05,43834.0,43824.0,0.21]
[1644276799801,0.324427,43835.0,43824.0,0.21]
[1644276800057,0.2726964,43834.0,43824.0,0.21]
[1644276800253,0.05,43832.0,43824.0,0.26704335]
[1644276800452,0.05,43828.0,43824.0,0.21]
[1644276800850,0.324427,43827.0,43824.0,0.21]
[1644276801049,0.374427,43827.0,43824.0,0.21]
[1644276801249,0.05,43827.0,43824.0,0.21]
[1644276801452,0.05,43828.0,43824.0,0.21]
[1644276801651,0.324427,43827.0,43824.0,0.21]
[1644276803555,0.1,43830.0,43824.0,0.21]
[1644276803805,0.324427,43829.0,43824.0,0.21]
[1644276804211,0.05,43825.0,43824.0,0.21]
[1644276804510,0.05,43825.0,43816.0,0.01800964]
[1644276804511,0.374427,43825.0,43821.0,0.00045783]
[1644276804707,0.05,43822.0,43821.0,0.00045783]
[1644276804912,0.374427,43822.0,43821.0,0.00045783]
[1644276805309,0.474427,43822.0,43821.0,0.00045783]
[1644276805507,0.474427,43822.0,43817.0,0.00016919]
[1644276805706,0.374427,43821.0,43819.0,0.00045784]
[1644276805906,0.474427,43821.0,43819.0,0.00045784]
[1644276806206,0.324427,43820.0,43819.0,0.00045784]
[1644276806406,0.424427,43820.0,43819.0,0.00045784]
[1644276806605,0.057069,43819.0,43813.0,0.00016919]
[1644276806807,0.324427,43817.0,43813.0,0.00016919]
[1644276807207,0.324427,43817.0,43812.0,0.02155109]
[1644276807755,0.057072,43815.0,43806.0,0.00016919]
[1644276807955,0.057072,43815.0,43812.0,0.00072453]
[1644276808155,0.05,43816.0,43812.0,0.00072453]
[1644276808956,0.05,43816.0,43806.0,0.00016919]
[1644276809161,0.37374358,43819.0,43812.0,0.00072454]
[1644276809360,0.324427,43818.0,43812.0,0.00072454]
[1644276809959,0.06870748,43816.0,43812.0,0.00072454]
[1644276810161,0.06870748,43816.0,43805.0,0.00016919]
[1644276810359,0.06870748,43816.0,43812.0,0.00072454]
[1644276810560,0.324427,43815.0,43812.0,0.00072454]
[1644276811308,0.05,43814.0,43812.0,0.00072454]
[1644276811509,0.05,43814.0,43805.0,0.00016919]
[1644276811510,0.324427,43813.0,43805.0,0.00016919]
[1644276811713,0.05,43814.0,43811.0,0.00072455]
[1644276812711,0.05,43814.0,43805.0,0.00016919]
[1644276812907,0.05,43814.0,43810.0,0.00072456]
[1644276813908,0.05707,43817.0,43805.0,0.00016919]
[1644276814111,0.05,43814.0,43810.0,0.00072456]
[1644276815053,0.05,43814.0,43804.0,0.12248502]
[1644276815054,0.05,43814.0,43805.0,0.00016919]
[1644276815253,0.05,43814.0,43810.0,0.00072456]
[1644276815449,0.107074,43814.0,43810.0,0.00072456]
[1644276815650,0.05,43814.0,43810.0,0.00072456]
[1644276816250,0.05,43814.0,43805.0,0.00016919]
[1644276816451,0.05,43814.0,43810.0,0.00072456]
[1644276817451,0.05,43814.0,43805.0,0.00016919]
[1644276817652,0.05,43814.0,43810.0,0.00072456]
[1644276818653,0.05,43814.0,43806.0,0.00016919]
[1644276818909,0.05,43809.0,43805.0,0.00016919]
[1644276819110,0.05,43806.0,43804.0,0.00016919]
[1644276819310,0.05,43806.0,43801.0,0.02145671]
[1644276819311,0.05,43805.0,43801.0,0.0216259]
[1644276819508,0.05,43808.0,43801.0,0.0216259]
[1644276819709,0.05,43808.0,43802.0,0.007489]
[1644276819911,0.05,43808.0,43802.0,0.00765819]
[1644276820113,0.05,43810.0,43802.0,0.00811621]
[1644276820308,0.05,43813.0,43802.0,0.00811621]
[1644276820514,0.05,43813.0,43802.0,0.00062721]
[1644276820708,0.46904589,43814.0,43802.0,0.00045802]
[1644276821110,0.46904589,43814.0,43801.0,0.00016919]
[1644276821308,0.16904589,43814.0,43806.0,0.00045798]
[1644276821507,0.324427,43813.0,43801.0,0.00016919]
[1644276821710,0.01904589,43814.0,43801.0,0.00016919]
[1644276822109,0.05,43809.0,43801.0,0.00016919]
[1644276822314,0.10708,43809.0,43801.0,0.00016919]
[1644276822951,0.114161,43809.0,43801.0,0.00016919]
[1644276823154,0.05,43807.0,43801.0,0.00016919]
[1644276823350,0.057083,43806.0,43801.0,0.00016919]
[1644276823953,0.05,43807.0,43802.0,0.007487]
[1644276824750,0.05,43807.0,43802.0,0.00821202]
[1644276825757,0.05,43807.0,43802.0,0.007487]
[1644276826312,0.05,43807.0,43802.0,0.00072502]
[1644276827212,0.05,43807.0,43802.0,0.00821502]
[1644276827413,0.107082,43810.0,43802.0,0.00821502]
[1644276827615,0.107082,43810.0,43802.0,0.00072502]
[1644276828013,0.05,43803.0,43802.0,0.00072502]
[1644276828215,0.05,43809.0,43802.0,0.007488]
[1644276828520,0.05,43809.0,43804.0,0.000725]
[1644276829116,0.01978719,43811.0,43804.0,0.000725]
[1644276829117,0.05,43805.0,43804.0,0.000725]
[1644276829316,0.01978719,43811.0,43804.0,0.000725]
[1644276829620,0.05,43809.0,43802.0,0.00072502]
[1644276830278,0.1214,43812.0,43802.0,0.00072502]
[1644276830475,0.05,43811.0,43802.0,0.00072502]
[1644276830676,0.1214,43812.0,43801.0,0.00016919]
[1644276830877,0.1214,43812.0,43804.0,0.00072501]
[1644276831082,0.1214,43812.0,43804.0,0.0008942]
[1644276831378,0.1214,43812.0,43804.0,0.00072501]
[1644276831778,0.1214,43812.0,43802.0,0.057068]
[1644276831977,0.1214,43812.0,43804.0,0.0007254]
[1644276832177,0.1214,43812.0,43805.0,0.05706555]
[1644276832377,0.01818203,43813.0,43805.0,0.05723474]
[1644276832378,0.05,43810.0,43805.0,0.05723474]
[1644276832777,0.06959597,43813.0,43805.0,0.05723474]
[1644276833177,0.06959597,43813.0,43804.0,0.0007254]
[1644276833381,0.05,43811.0,43804.0,0.0007254]
[1644276833587,0.01959597,43813.0,43804.0,0.0007254]
[1644276834003,0.05,43815.0,43804.0,0.0007254]
[1644276834205,0.05,43815.0,43804.0,0.05706944]
[1644276834405,0.05,43815.0,43804.0,0.05779485]
[1644276835405,0.05,43815.0,43804.0,0.05706944]
[1644276835605,0.05,43815.0,43804.0,0.05779485]
[1644276835808,0.05,43815.0,43804.0,0.00072541]
[1644276835809,0.057074,43814.0,43804.0,0.00072541]
[1644276836606,0.057074,43814.0,43802.0,0.00016919]
[1644276836808,0.057074,43814.0,43804.0,0.0007254]
[1644276837657,0.057076,43813.0,43804.0,0.0007254]
[1644276837858,0.05,43812.0,43808.0,0.5]
[1644276838658,0.107076,43813.0,43808.0,0.5]
[1644276838860,0.05,43812.0,43808.0,0.5]
[1644276839459,0.164153,43812.0,43808.0,0.5]
[1644276839661,0.107076,43812.0,43808.0,0.5]
[1644276840860,0.164153,43812.0,43808.0,0.5]
[1644276841803,0.324427,43811.0,43808.0,0.5]
[1644276842603,0.324427,43810.0,43809.0,0.0001]
[1644276843401,0.164153,43812.0,43809.0,0.0001]
[1644276843402,0.107076,43812.0,43809.0,0.0001]
[1644276843602,0.107076,43812.0,43809.0,0.00026919]
[1644276843603,0.324427,43810.0,43809.0,0.00026919]
[1644276843802,0.05,43813.0,43809.0,0.0001]
[1644276844209,0.05,43815.0,43809.0,0.00026919]
[1644276844403,0.381501,43814.0,43809.0,0.0001]
[1644276844603,0.05,43812.0,43809.0,0.00026919]
[1644276844802,0.324427,43811.0,43809.0,0.00026919]
[1644276845349,0.324427,43811.0,43809.0,0.0001]
[1644276846149,0.057078,43810.0,43809.0,0.0001]
[1644276848552,0.381505,43810.0,43809.0,0.0001]
[1644276848802,0.481505,43810.0,43809.0,0.0001]
[1644276850303,0.481505,43810.0,43808.0,0.49763063]
[1644276850502,0.324427,43809.0,43808.0,0.49763063]
[1644276850703,0.374427,43809.0,43808.0,0.49763063]
[1644276850901,0.524427,43809.0,43808.0,0.49763063]
[1644276851501,0.524427,43809.0,43804.0,0.00070239]
[1644276851502,0.057083,43808.0,43800.0,1.52198524]
[1644276851703,0.057084,43806.0,43800.0,1.52198524]
[1644276852106,0.057084,43806.0,43800.0,1.50311968]
[1644276852560,0.15,43809.0,43800.0,1.50311968]
[1644276853154,0.05,43809.0,43800.0,1.50311968]
[1644276853357,0.171245,43809.0,43800.0,1.50311968]
[1644276853557,0.05,43801.0,43800.0,1.50311968]
[1644276854154,0.057087,43803.0,43800.0,1.50311968]
[1644276854356,0.04,43801.0,43800.0,1.50311968]
[1644276854956,0.057089,43802.0,43800.0,1.50311968]
[1644276855556,0.04,43801.0,43800.0,1.50311968]
[1644276857414,0.04,43801.0,43800.0,0.21141968]
[1644276857415,0.34,43801.0,43800.0,0.21141968]
[1644276857618,0.46716455,43796.0,43793.0,0.01628297]
[1644276857812,0.48705273,43793.0,43792.0,0.01178749]
[1644276858213,0.63705273,43793.0,43792.0,0.01178749]
[1644276858416,0.2,43792.0,43787.0,0.0011937]
[1644276858616,0.364427,43791.0,43787.0,0.0011937]
[1644276858816,0.514427,43791.0,43787.0,0.0011937]
[1644276859014,0.474427,43791.0,43787.0,0.0011937]
[1644276859220,0.324427,43791.0,43790.0,0.012]
[1644276860066,0.16262573,43793.0,43790.0,0.012]
[1644276860262,0.324427,43792.0,43790.0,0.012]
[1644276860461,0.16262573,43793.0,43790.0,0.012]
[1644276861060,0.20262573,43793.0,43790.0,0.002]
[1644276861265,0.374427,43792.0,43790.0,0.002]
[1644276861467,0.59243231,43791.0,43790.0,0.002]
[1644276861765,0.424427,43791.0,43790.0,0.002]
[1644276862665,0.59298577,43791.0,43790.0,0.002]
[1644276862863,0.74298577,43791.0,43790.0,0.002]
[1644276863908,0.474427,43791.0,43790.0,0.002]
[1644276864109,0.01869539,43794.0,43791.0,0.09602]
[1644276864313,8.39e-06,43794.0,43793.0,0.334436]
[1644276864510,8.39e-06,43794.0,43793.0,0.684436]
[1644276864709,8.39e-06,43794.0,43793.0,0.83917069]
[1644276864916,8.39e-06,43794.0,43793.0,1.86057748]
[1644276865411,0.0031686,43813.0,43793.0,1.86057748]
[1644276865412,0.0031686,43813.0,43796.0,0.05]
[1644276865610,0.0024445,43813.0,43812.0,0.01]
[1644276865810,0.00316861,43813.0,43812.0,0.01]
[1644276866008,0.00316861,43813.0,43812.0,0.334436]
[1644276866411,0.00316861,43813.0,43812.0,0.381502]
[1644276866610,0.00316861,43813.0,43812.0,0.057066]
[1644276866809,0.0024445,43813.0,43812.0,0.067066]
[1644276867411,0.0024445,43813.0,43812.0,0.391502]
[1644276867665,0.0024445,43813.0,43812.0,2.21279786]
[1644276868060,0.0024445,43813.0,43812.0,2.39555628]
[1644276869061,0.0024445,43813.0,43812.0,2.33849028]
[1644276869264,0.0024445,43813.0,43812.0,2.32849028]
[1644276869461,0.0024445,43813.0,43812.0,2.01405428]
[1644276869863,0.0024445,43813.0,43812.0,0.18275842]
[1644276870462,0.0024445,43813.0,43808.0,0.04409]
[1644276870662,0.0024445,43813.0,43812.0,0.01]
[1644276871507,0.0024445,43813.0,43808.0,0.04409]
[1644276871909,0.0024445,43813.0,43812.0,0.01]
[1644276872109,0.0024445,43813.0,43808.0,0.04409]
[1644276872507,0.0024445,43813.0,43811.0,0.01]
[1644276873107,0.00312232,43813.0,43811.0,0.01]
[1644276873507,0.00312232,43813.0,43812.0,2.10992838]
[1644276873908,0.0024445,43813.0,43812.0,2.10992838]
[1644276874108,0.0024445,43813.0,43812.0,2.2926868]
[1644276874714,0.0024445,43813.0,43812.0,2.6171228]
[1644276875365,0.00107425,43821.0,43813.0,0.55]
[1644276875573,0.00107425,43821.0,43820.0,0.067039]
[1644276875768,0.00107425,43821.0,43820.0,0.391409]
[1644276875967,0.28507425,43834.0,43821.0,0.1]
[1644276876165,0.28507425,43834.0,43832.0,0.01]
[1644276876364,0.1,43837.0,43832.0,0.01]
[1644276876563,0.1,43837.0,43832.0,0.00767942]
[1644276876765,0.04232058,43833.0,43829.0,0.00767942]
[1644276876965,0.04232058,43833.0,43821.0,0.1]
[1644276876966,0.324436,43832.0,43826.0,0.00767942]
[1644276877164,0.324436,43832.0,43822.0,0.00767942]
[1644276877364,0.04232058,43833.0,43822.0,0.00767942]
[1644276877565,0.3,43836.0,43822.0,0.00767942]
[1644276877767,0.324436,43835.0,43822.0,0.00767942]
[1644276878170,0.01964798,43832.0,43827.0,0.00767942]
[1644276879211,0.01964798,43832.0,43831.0,0.00767942]
[1644276880209,0.00072449,43834.0,43831.0,0.00767942]
[1644276880411,0.00072449,43834.0,43833.0,0.00767942]
[1644276880610,0.32516049,43834.0,43833.0,0.00767942]
[1644276881010,0.32516049,43834.0,43830.0,0.00767942]
[1644276881209,0.324436,43833.0,43830.0,0.00767942]
[1644276881408,0.04232058,43835.0,43830.0,0.00767942]
[1644276881611,0.00072447,43836.0,43822.0,0.36346781]
[1644276881809,0.00072447,43836.0,43824.0,0.057039]
[1644276882009,0.00072447,43836.0,43825.0,0.31009354]
[1644276882408,0.1,43837.0,43825.0,0.31009354]
[1644276882659,0.0007245,43833.0,43825.0,0.31009354]
[1644276882861,0.0007245,43833.0,43825.0,0.30230224]
[1644276883057,0.0007245,43833.0,43824.0,0.057039]
[1644276883260,0.0007245,43833.0,43825.0,0.74576134]
[1644276883465,0.15,43837.0,43827.0,0.064225]
[1644276883661,0.15,43837.0,43828.0,0.35652173]
[1644276883861,0.05,43836.0,43828.0,0.35652173]
[1644276884059,0.00072452,43831.0,43828.0,0.35652173]
[1644276884361,0.00072452,43831.0,43829.0,0.324436]
[1644276884558,0.00072452,43831.0,43824.0,0.01864713]
[1644276884762,0.05,43834.0,43825.0,0.324436]
[1644276884958,0.00072451,43832.0,43824.0,0.01864713]
[1644276885159,0.00072451,43832.0,43825.0,0.324436]
[1644276885964,0.05,43834.0,43825.0,0.324436]
[1644276886161,0.00072452,43831.0,43823.0,0.02181631]
[1644276886408,0.00072452,43831.0,43824.0,0.324436]
[1644276887208,0.05,43834.0,43824.0,0.324436]
[1644276887408,0.00072453,43830.0,43823.0,0.02181631]
[1644276887606,0.00072453,43830.0,43824.0,0.324436]
[1644276888407,0.05,43834.0,43824.0,0.324436]
[1644276888713,0.0006832,43829.0,43824.0,0.324436]
[1644276889507,0.1,43837.0,43824.0,0.324436]
[1644276889706,0.0006832,43829.0,43824.0,0.324436]
[1644276890158,0.0006832,43829.0,43825.0,0.3131595]
[1644276890357,0.0006832,43829.0,43826.0,0.007201]
[1644276890562,0.0006832,43829.0,43826.0,0.06423724]
[1644276890757,0.05,43833.0,43827.0,0.0072]
[1644276890961,0.00068319,43830.0,43827.0,0.0072]
[1644276892058,0.05,43833.0,43827.0,0.0072]
[1644276892261,0.00068318,43831.0,43820.0,0.01935404]
[1644276892459,0.00068318,43831.0,43821.0,0.324436]
[1644276892658,0.00068318,43831.0,43823.0,0.007225]
[1644276893259,0.05,43833.0,43823.0,0.007225]
[1644276893459,0.00068597,43829.0,43823.0,0.007225]
[1644276894307,0.05,43833.0,43823.0,0.007225]
[1644276894509,0.00068598,43828.0,43823.0,0.007225]
[1644276895113,0.05,43827.0,43823.0,0.007225]
[1644276895309,0.00068598,43828.0,43818.0,0.11409316]
[1644276895510,0.05,43830.0,43819.0,0.00726]
[1644276895708,0.05,43830.0,43816.0,0.00068615]
[1644276895908,0.00068601,43825.0,43817.0,0.007267]
[1644276896108,0.00068601,43825.0,43819.0,0.324416]
[1644276896810,0.05,43833.0,43821.0,0.007265]
[1644276897111,0.05,43833.0,43820.0,0.30145502]
[1644276897112,0.05,43833.0,43820.0,0.35145502]
[1644276897313,0.00068584,43824.0,43820.0,0.35145502]
[1644276897568,0.00068584,43824.0,43822.0,0.05704303]
[1644276897761,0.00068584,43824.0,43823.0,0.31353571]
[1644276897961,0.05,43833.0,43823.0,0.31353571]
[1644276898162,0.00022891,43825.0,43823.0,0.30630671]
[1644276898361,0.00022891,43825.0,43824.0,0.324436]
[1644276899267,0.05,43828.0,43820.0,0.18271915]
[1644276899462,0.00068587,43827.0,43821.0,0.324436]
[1644276899862,0.00068587,43827.0,43821.0,0.32069253]
[1644276900064,0.00068587,43827.0,43822.0,0.35856936]
[1644276900267,0.00068587,43827.0,43823.0,0.007227]
[1644276900465,0.05,43831.0,43823.0,0.007227]
[1644276900665,0.00070926,43827.0,43822.0,0.40152609]
[1644276900868,0.00070926,43827.0,43823.0,0.324381]
[1644276901065,0.00070926,43827.0,43823.0,0.374381]
[1644276901708,0.05,43834.0,43823.0,0.374381]
[1644276901912,0.00070926,43827.0,43823.0,0.374381]
[1644276902108,0.00070926,43827.0,43824.0,0.05703829]
[1644276902317,0.00070926,43827.0,43825.0,0.30116534]
[1644276902507,0.00070926,43827.0,43825.0,0.324381]
[1644276902908,0.06845359,43836.0,43824.0,0.41693717]
[1644276903107,0.00070925,43828.0,43826.0,0.324381]
[1644276903909,0.01845359,43836.0,43826.0,0.324381]
[1644276903910,0.0187456,43836.0,43826.0,0.324381]
[1644276904110,0.05029201,43836.0,43824.0,0.05703829]
[1644276904310,0.00068429,43829.0,43824.0,0.05402229]
[1644276904514,0.00068429,43829.0,43825.0,0.30091111]
[1644276904709,0.00068429,43829.0,43825.0,0.62529211]
[1644276905164,0.00029201,43836.0,43825.0,0.67529211]
[1644276905361,0.00029201,43836.0,43829.0,0.05703589]
[1644276905362,0.00273675,43836.0,43829.0,0.05703589]
[1644276905565,0.00302876,43836.0,43829.0,0.05703589]
[1644276906361,0.00302876,43836.0,43826.0,0.02127454]
[1644276906362,0.00029201,43836.0,43826.0,0.02127454]
[1644276906561,0.095,43837.0,43826.0,0.01627454]
[1644276906760,0.00068423,43835.0,43826.0,0.01627454]
[1644276907166,0.00097624,43835.0,43826.0,0.01627454]
[1644276907361,0.00068423,43835.0,43826.0,0.01627454]
[1644276907560,0.00029201,43836.0,43826.0,0.01627454]
[1644276907762,0.05,43834.0,43826.0,0.01627454]
[1644276907960,0.00068644,43833.0,43826.0,0.07260391]
[1644276908161,0.00068644,43833.0,43825.0,0.02017493]
[1644276908162,0.05,43830.0,43825.0,0.02017493]
[1644276908360,0.00068644,43833.0,43825.0,0.02017493]
[1644276908810,0.05029201,43835.0,43825.0,0.02017493]
[1644276909007,0.00023,43831.0,43825.0,0.02017493]
[1644276910110,0.05,43833.0,43822.0,0.02061037]
[1644276910312,0.00023,43830.0,43822.0,0.02061037]
[1644276910508,0.00023,43830.0,43824.0,0.057041]
[1644276910707,0.00023,43830.0,43825.0,0.324381]
[1644276911106,0.05,43833.0,43825.0,0.324381]
[1644276911307,0.05,43833.0,43824.0,0.057041]
[1644276911508,0.00070969,43830.0,43823.0,0.11407914]
[1644276911709,0.05,43827.0,43820.0,0.23271915]
[1644276911909,0.05,43827.0,43821.0,0.324381]
[1644276911910,0.02061037,43823.0,43821.0,0.324381]
[1644276912312,0.05,43827.0,43817.0,0.324381]
[1644276912566,0.00070975,43824.0,43818.0,0.5]
[1644276912861,0.00070975,43824.0,43819.0,0.324381]
[1644276913561,0.07007183,43833.0,43819.0,0.324381]
[1644276913760,0.27588105,43832.0,43822.0,0.057045]
[1644276914061,0.00070976,43824.0,43823.0,0.324381]
[1644276914864,0.05029201,43832.0,43823.0,0.324381]
[1644276915061,0.00068486,43826.0,43824.0,0.1140839]
[1644276915261,0.00068486,43826.0,43825.0,0.324381]
[1644276916060,0.02170226,43830.0,43825.0,0.324381]
[1644276916307,0.00068483,43828.0,43826.0,0.057039]
[1644276917108,0.00068483,43828.0,43824.0,0.1640799]
[1644276917109,0.00068483,43828.0,43824.0,0.1070419]
[1644276917308,0.07170226,43830.0,43824.0,0.1070419]
[1644276917510,0.00068482,43829.0,43824.0,0.1070419]
[1644276917706,0.05068482,43829.0,43824.0,0.1070419]
[1644276917907,0.00068482,43829.0,43824.0,0.1070419]
[1644276918107,0.00068482,43829.0,43824.0,0.1640839]
[1644276918506,0.02170226,43830.0,43824.0,0.1640839]
[1644276918707,0.00068649,43829.0,43824.0,0.1640839]
[1644276918906,0.00068649,43829.0,43825.0,0.324381]
[1644276919105,0.00068649,43829.0,43824.0,0.1640839]
[1644276919307,0.00068649,43829.0,43824.0,0.1070419]
[1644276919606,0.00029201,43832.0,43824.0,0.1070419]
[1644276919808,0.00068649,43829.0,43824.0,0.1070419]
[1644276920066,0.00068649,43829.0,43827.0,0.00262793]
[1644276920860,0.00029201,43831.0,43827.0,0.00262793]
[1644276921057,0.00068648,43830.0,43827.0,0.00262793]
[1644276922159,0.00029201,43831.0,43827.0,0.00101464]
[1644276922364,0.00059236,43827.0,43826.0,0.1140815]
[1644276923161,0.00059236,43827.0,43824.0,0.324381]
[1644276923909,0.00059236,43827.0,43824.0,0.68084391]
[1644276924310,0.00059236,43827.0,43824.0,0.73084391]
[1644276924510,0.00059236,43827.0,43826.0,0.324381]
[1644276924709,0.00059236,43827.0,43826.0,0.374381]
[1644276925410,0.00059236,43827.0,43826.0,0.324381]
[1644276926019,0.00059236,43827.0,43826.0,0.64983104]
[1644276926215,0.00068639,43829.0,43826.0,0.64983104]
[1644276926216,0.00068639,43829.0,43827.0,0.5]
[1644276926414,0.01993023,43831.0,43827.0,0.5]
[1644276926415,0.01993023,43831.0,43829.0,0.15]
[1644276926613,0.01963822,43831.0,43830.0,0.324381]
[1644276926920,0.01963822,43831.0,43830.0,0.474381]
[1644276927116,0.00029201,43836.0,43831.0,0.06207561]
[1644276927313,0.095,43837.0,43831.0,0.06207561]
[1644276927314,0.00039201,43837.0,43831.0,0.06207561]
[1644276927573,0.02,43849.0,43836.0,0.1]
[1644276927774,0.02,43849.0,43843.0,0.1]
[1644276927970,0.02,43849.0,43844.0,0.057005]
[1644276928171,0.02,43849.0,43845.0,0.324381]
[1644276928370,0.01969107,43849.0,43846.0,0.5]
[1644276928568,0.015,43859.0,43849.0,0.05]
[1644276928880,0.015,43859.0,43853.0,0.05]
[1644276929071,0.015,43859.0,43856.0,0.05]
[1644276929268,0.015,43859.0,43857.0,0.12084921]
[1644276929469,0.00029273,43863.0,43858.0,0.3]
[1644276929672,0.03,43864.0,43859.0,0.5]
[1644276929872,0.00029273,43863.0,43860.0,0.438335]
[1644276930067,0.03029273,43864.0,43860.0,0.495311]
[1644276930273,0.03029273,43864.0,43862.0,0.2]
[1644276930466,0.03,43864.0,43863.0,0.474381]
[1644276930668,0.03072562,43864.0,43863.0,0.474381]
[1644276931071,0.03072562,43864.0,43863.0,0.324381]
[1644276931328,0.03072562,43864.0,43849.0,0.03465522]
[1644276931329,0.38072562,43864.0,43849.0,0.03465522]
[1644276931626,0.3,43864.0,43853.0,0.5]
[1644276931829,0.3,43864.0,43854.0,0.324381]
[1644276932026,0.05,43859.0,43854.0,0.324381]
[1644276932231,0.00072567,43860.0,43852.0,0.18258352]